bitfinex/quotes_BTCUSD_20250618
["timestamp","ask_amount","ask_price","bid_price","bid_amount"]
[1750220719095,0.03798515,105300.0,105290.0,0.56450725]
[1750220719572,0.03798461,105300.0,105290.0,0.56450725]
[1750220719905,0.03845676,105300.0,105290.0,0.56550725]
[1750220720206,0.03845676,105300.0,105290.0,0.56650725]
[1750220720727,0.04795325,105300.0,105290.0,0.56650725]
[1750220722718,0.04795388,105300.0,105290.0,0.56650725]
[1750220724075,0.22839172,105300.0,105290.0,0.20320176]
[1750220724293,0.20939892,105300.0,105290.0,0.04176]
[1750220724528,0.20939892,105300.0,105290.0,0.20498214]
[1750220725042,0.20939892,105300.0,105290.0,0.20298214]
[1750220725537,0.21039892,105300.0,105290.0,0.20298214]
[1750220725871,0.21039892,105300.0,105290.0,0.16322214]
[1750220726281,0.21139892,105300.0,105290.0,0.16322214]
[1750220728816,0.21139892,105300.0,105290.0,0.17271971]
[1750220729028,0.21139892,105300.0,105290.0,0.23841971]
[1750220730425,0.21139892,105300.0,105290.0,0.42900661]
[1750220730632,0.21139892,105300.0,105290.0,0.44739092]
[1750220731049,0.21139892,105300.0,105290.0,0.45688822]
[1750220731482,0.21139892,105300.0,105290.0,0.4480013]
[1750220731711,0.21139892,105300.0,105290.0,0.45688787]
[1750220732123,0.21139892,105300.0,105290.0,0.44739057]
[1750220732754,0.26256057,105300.0,105290.0,0.45688769]
[1750220732971,0.04417142,105300.0,105290.0,0.55373982]
[1750220733178,0.06316404,105300.0,105290.0,0.55373982]
[1750220733847,0.06316404,105300.0,105290.0,0.59349982]
[1750220734032,0.05366755,105300.0,105290.0,0.59349982]
[1750220734601,0.06316404,105300.0,105290.0,0.59349982]
[1750220736056,0.05366755,105300.0,105290.0,0.59349982]
[1750220736242,0.06316404,105300.0,105290.0,0.59349982]
[1750220738328,0.07266071,105300.0,105290.0,0.59349982]
[1750220738764,0.06316467,105300.0,105290.0,0.58400288]
[1750220739433,0.24360206,105300.0,105290.0,0.58400306]
[1750220739660,0.24360206,105300.0,105290.0,0.38988306]
[1750220739892,0.2151125,105300.0,105290.0,0.29036176]
[1750220740133,0.2151125,105300.0,105290.0,0.20302266]
[1750220740365,0.24356732,105300.0,105290.0,0.20302266]
[1750220740861,0.24356732,105300.0,105290.0,0.21252023]
[1750220741073,0.24356732,105300.0,105290.0,0.20302266]
[1750220742823,0.24356732,105300.0,105290.0,0.20302289]
[1750220743045,0.2151125,105300.0,105290.0,0.20302279]
[1750220743269,0.2151125,105300.0,105290.0,0.21252036]
[1750220743481,0.2151125,105300.0,105290.0,0.40247192]
[1750220743715,0.19240567,105300.0,105290.0,0.40306643]
[1750220745108,0.19240567,105300.0,105290.0,0.43376643]
[1750220745580,0.19240567,105300.0,105290.0,0.44326364]
[1750220746198,0.19240567,105300.0,105290.0,0.45276076]
[1750220746431,0.00247215,105300.0,105290.0,0.58919946]
[1750220747634,0.00247215,105300.0,105290.0,0.60374031]
[1750220747876,0.00247215,105300.0,105290.0,0.89484031]
[1750220748553,0.00147215,105300.0,105290.0,0.89484031]
[1750220748796,0.00047215,105300.0,105290.0,0.89484031]
[1750220749046,0.00047215,105300.0,105290.0,0.89684031]
[1750220751148,0.00047215,105300.0,105290.0,0.92572189]
[1750220769301,0.00047215,105300.0,105290.0,0.849263]
[1750220770173,0.00047215,105300.0,105290.0,0.898263]
[1750220770386,0.00047215,105300.0,105290.0,0.897263]
[1750220770824,0.00047215,105300.0,105290.0,0.68962189]
[1750220771038,0.00047215,105300.0,105290.0,0.904263]
[1750220771476,0.00047215,105300.0,105290.0,0.902263]
[1750220771713,0.00047215,105300.0,105290.0,0.68762189]
[1750220771954,0.00047215,105300.0,105290.0,0.902263]
[1750220772189,0.00047215,105300.0,105290.0,0.68762189]
[1750220772403,0.00047215,105300.0,105290.0,0.852263]
[1750220772613,0.00047215,105300.0,105290.0,0.902263]
[1750220773066,0.00047215,105300.0,105290.0,0.905263]
[1750220773559,0.00047215,105300.0,105290.0,0.855263]
[1750220774614,0.00047215,105300.0,105290.0,0.905263]
[1750220775706,0.00047215,105300.0,105290.0,1.146363]
[1750220776585,0.00047215,105300.0,105290.0,0.76278104]
[1750220776804,0.00047215,105300.0,105290.0,0.91798104]
[1750220777041,0.00047215,105300.0,105290.0,0.93252189]
[1750220780772,0.00047215,105300.0,105290.0,1.16064189]
[1750220781028,0.00047215,105300.0,105290.0,1.375283]
[1750220781917,0.00047215,105300.0,105290.0,1.425283]
[1750220783468,0.34,105330.0,105320.0,0.21838098]
[1750220783682,0.34,105330.0,105320.0,0.51040446]
[1750220783908,0.34,105330.0,105320.0,0.52494531]
[1750220784123,0.34,105330.0,105320.0,0.58844531]
[1750220784542,0.0634,105340.0,105330.0,0.21836025]
[1750220784754,0.0634,105340.0,105330.0,0.31460201]
[1750220786069,0.0674,105340.0,105330.0,0.31460201]
[1750220786711,0.0664,105340.0,105330.0,0.31460201]
[1750220787141,0.0634,105340.0,105330.0,0.31460201]
[1750220787444,0.0644,105340.0,105330.0,0.31460201]
[1750220788064,0.0664,105340.0,105330.0,0.31460201]
[1750220789125,0.003,105340.0,105330.0,0.31460201]
[1750220791736,0.07569225,105340.0,105330.0,0.31460201]
[1750220791952,0.0662,105340.0,105330.0,0.31460201]
[1750220794175,0.08518513,105340.0,105330.0,0.3146021]
[1750220794399,0.08518513,105340.0,105330.0,0.47933544]
[1750220794400,0.09467792,105340.0,105330.0,0.47933544]
[1750220794821,0.1041708,105340.0,105330.0,0.47933544]
[1750220795963,0.11366377,105340.0,105330.0,0.47933544]
[1750220798777,0.30352581,105340.0,105330.0,0.29561506]
[1750220798991,0.29403311,105340.0,105330.0,0.46042885]
[1750220799206,0.28454032,105340.0,105330.0,0.46038885]
[1750220799418,0.61504744,105340.0,105330.0,0.45089515]
[1750220799631,0.63781429,105340.0,105330.0,0.46038903]
[1750220799840,0.63781429,105340.0,105330.0,0.46988273]
[1750220800082,0.63781429,105340.0,105330.0,0.47937634]
[1750220800909,0.63781429,105340.0,105330.0,0.46988273]
[1750220801464,0.63781429,105340.0,105330.0,0.47937625]
[1750220803689,0.6378095,105340.0,105330.0,0.47937625]
[1750220804477,0.63780889,105340.0,105330.0,0.47937625]
[1750220804680,0.63780889,105340.0,105330.0,0.46988273]
[1750220804891,0.63780889,105340.0,105330.0,0.47937634]
[1750220805824,0.63781023,105340.0,105330.0,0.48886986]
[1750220807645,0.63781023,105340.0,105330.0,0.47937634]
[1750220808100,0.61504744,105340.0,105330.0,0.47937634]
[1750220808320,0.61504744,105340.0,105330.0,0.46038903]
[1750220808550,0.62831716,105340.0,105330.0,0.45073515]
[1750220808778,0.61882409,105340.0,105330.0,0.45073515]
[1750220809264,0.61882409,105340.0,105330.0,0.46022903]
[1750220809495,0.61882409,105340.0,105330.0,0.46972282]
[1750220811260,0.61882409,105340.0,105330.0,0.47921652]
[1750220813747,0.62831697,105340.0,105330.0,0.47921652]
[1750220814214,0.62831546,105340.0,105330.0,0.47921643]
[1750220814445,0.62831565,105340.0,105330.0,0.47921652]
[1750220814895,0.62831565,105340.0,105330.0,0.48871004]
[1750220816884,0.62831565,105340.0,105330.0,0.52887004]
[1750220817113,0.62831565,105340.0,105330.0,0.5288695]
[1750220822014,0.62831565,105340.0,105330.0,0.51937607]
[1750220825749,0.62831565,105340.0,105330.0,0.24902709]
[1750220825961,0.62831565,105340.0,105330.0,0.39429339]
[1750220826167,0.62831565,105340.0,105330.0,0.20437397]
[1750220826376,0.62831565,105340.0,105320.0,0.21852252]
[1750220826377,0.0094937,105330.0,105320.0,0.21852252]
[1750220826589,0.05108731,105330.0,105320.0,0.50964428]
[1750220826832,0.01898713,105330.0,105320.0,0.50964428]
[1750220827044,0.01898686,105330.0,105320.0,0.50964428]
[1750220828257,0.02848047,105330.0,105320.0,0.50964428]
[1750220829607,0.02848047,105330.0,105320.0,0.35492428]
[1750220829788,0.02848047,105330.0,105320.0,0.50960428]
[1750220830344,0.01898686,105330.0,105320.0,0.50960428]
[1750220830565,0.00949334,105330.0,105320.0,0.50960428]
[1750220830692,0.01898695,105330.0,105320.0,0.50960428]
[1750220830910,0.01898686,105330.0,105320.0,0.50960428]
[1750220831700,0.01898677,105330.0,105320.0,0.50960428]
[1750220834009,0.00949334,105330.0,105320.0,0.50960428]
[1750220834270,0.63404547,105340.0,105330.0,0.20886673]
[1750220834731,0.45367649,105340.0,105330.0,0.21836016]
[1750220835189,0.45367649,105340.0,105330.0,0.2278535]
[1750220835400,0.46316956,105340.0,105330.0,0.2278535]
[1750220835609,0.46416956,105340.0,105330.0,0.2278535]
[1750220835823,0.46616956,105340.0,105330.0,0.2278535]
[1750220838796,0.46616956,105340.0,105330.0,0.21836016]
[1750220839017,0.46616956,105340.0,105330.0,0.20886673]
[1750220839660,0.65603096,105340.0,105330.0,0.20886673]
[1750220841536,0.64653844,105340.0,105330.0,0.20886673]
[1750220841969,0.62755268,105340.0,105330.0,0.19937321]
[1750220842385,0.62755268,105340.0,105330.0,0.20886691]
[1750220842590,0.62755268,105340.0,105330.0,0.21836052]
[1750220843024,0.62755268,105340.0,105330.0,0.22785395]
[1750220843211,0.62755268,105340.0,105330.0,0.26765395]
[1750220843849,0.62755268,105340.0,105330.0,0.25816052]
[1750220844052,0.62755268,105340.0,105330.0,0.24866691]
[1750220847183,0.62755268,105340.0,105330.0,0.25816052]
[1750220848297,0.62755268,105340.0,105330.0,0.24866691]
[1750220849332,0.62755268,105340.0,105330.0,0.25816052]
[1750220849646,0.59725268,105340.0,105330.0,0.26765404]
[1750220850554,0.36579821,105340.0,105330.0,0.26765404]
[1750220850759,0.37529055,105340.0,105330.0,0.43578914]
[1750220850986,0.36579821,105340.0,105330.0,0.43578914]
[1750220851169,0.37529073,105340.0,105330.0,0.43578914]
[1750220851655,0.39427586,105340.0,105330.0,0.43578914]
[1750220851866,0.39427577,105340.0,105330.0,0.43578914]
[1750220852523,0.38478307,105340.0,105330.0,0.43578914]
[1750220853575,0.39426956,105340.0,105330.0,0.43578914]
[1750220854007,0.38477686,105340.0,105330.0,0.43578914]
[1750220854442,0.37528434,105340.0,105330.0,0.43578914]
[1750220856240,0.01249234,105340.0,105330.0,0.43578914]
[1750220856672,0.02198486,105340.0,105330.0,0.43578914]
[1750220857950,0.01249234,105340.0,105330.0,0.43578914]
[1750220858791,0.02198477,105340.0,105330.0,0.43578914]
[1750220859053,0.03147738,105340.0,105330.0,0.43578914]
[1750220859618,0.02198477,105340.0,105330.0,0.43578914]
[1750220864034,0.36198477,105340.0,105330.0,0.43578914]
[1750220864236,0.35249234,105340.0,105330.0,0.43578914]
[1750220864653,0.36198477,105340.0,105330.0,0.43578914]
[1750220865528,0.37147738,105340.0,105330.0,0.43578914]
[1750220865729,0.36198477,105340.0,105330.0,0.43578914]
[1750220865935,0.37147738,105340.0,105330.0,0.43578914]
[1750220866142,0.36198477,105340.0,105330.0,0.43578914]
[1750220866974,0.343,105340.0,105330.0,0.43578914]
[1750220867834,0.338,105340.0,105330.0,0.43578914]
[1750220869303,0.09522811,105360.0,105350.0,0.20882706]
[1750220869514,0.26414473,105360.0,105350.0,0.40302706]
[1750220869925,0.60414473,105360.0,105350.0,0.40302706]
[1750220870135,0.626927,105360.0,105350.0,0.40302706]
[1750220870561,0.630927,105360.0,105350.0,0.40302706]
[1750220870887,0.62143637,105360.0,105350.0,0.40302706]
[1750220871022,0.62743637,105360.0,105350.0,0.40302706]
[1750220871258,0.61794547,105360.0,105350.0,0.39353535]
[1750220871835,0.61794547,105360.0,105350.0,0.41251904]
[1750220872481,0.42811966,105360.0,105350.0,0.41251904]
[1750220872694,0.42811966,105360.0,105350.0,0.42201057]
[1750220872695,0.44710191,105360.0,105350.0,0.42201057]
[1750220873623,0.41862885,105360.0,105350.0,0.51825233]
[1750220873844,0.36898117,105360.0,105350.0,0.58075233]
[1750220874060,0.37847171,105360.0,105350.0,0.58075233]
[1750220874255,0.02898108,105360.0,105350.0,0.58075233]
[1750220874504,0.01949045,105360.0,105350.0,0.58075233]
[1750220874791,0.01549045,105360.0,105350.0,0.58075233]
[1750220874903,0.03447189,105360.0,105350.0,0.58075233]
[1750220875134,0.04396288,105360.0,105350.0,0.58075233]
[1750220875586,0.03447189,105360.0,105350.0,0.58075233]
[1750220876054,0.03796288,105360.0,105350.0,0.58075233]
[1750220876276,0.05538892,105360.0,105350.0,0.58075233]
[1750220876501,0.05238892,105360.0,105350.0,0.58075233]
[1750220876733,0.04489793,105360.0,105350.0,0.58075233]
[1750220876955,0.04589793,105360.0,105350.0,0.58075233]
[1750220877174,0.04389793,105360.0,105350.0,0.58075233]
[1750220877641,0.05438892,105360.0,105350.0,0.58075233]
[1750220877871,0.05438883,105360.0,105350.0,0.58075233]
[1750220878322,0.04489793,105360.0,105350.0,0.58075233]
[1750220879272,0.03996288,105360.0,105350.0,0.58075233]
[1750220880294,0.04945396,105360.0,105350.0,0.58075233]
[1750220880519,0.03047189,105360.0,105350.0,0.58075233]
[1750220881194,0.03996279,105360.0,105350.0,0.58075233]
[1750220881449,0.03996279,105360.0,105350.0,0.55075233]
[1750220882169,0.03047189,105360.0,105350.0,0.55075233]
[1750220882647,0.04452115,105360.0,105350.0,0.55075233]
[1750220883084,0.04452115,105360.0,105350.0,0.58155233]
[1750220883510,0.02098108,105360.0,105350.0,0.58155233]
[1750220883721,0.0304718,105360.0,105350.0,0.58155233]
[1750220883959,0.01149045,105360.0,105350.0,0.58155233]
[1750220884170,0.02098108,105360.0,105350.0,0.58155233]
[1750220884667,0.01149045,105360.0,105350.0,0.58155233]
[1750220885261,0.02098108,105360.0,105350.0,0.58155233]
[1750220885747,0.03996297,105360.0,105350.0,0.51825233]
[1750220885988,0.03996297,105360.0,105350.0,0.32405233]
[1750220886226,0.10356297,105360.0,105350.0,0.51821233]
[1750220886651,0.08722144,105360.0,105350.0,0.51821233]
[1750220887065,0.06381252,105360.0,105350.0,0.51821233]
[1750220889916,0.05432144,105360.0,105350.0,0.51821233]
[1750220890143,0.06381252,105360.0,105350.0,0.51821233]
[1750220890561,0.06381324,105360.0,105350.0,0.51821233]
[1750220892595,0.05432207,105360.0,105350.0,0.51821233]
[1750220893723,0.04483099,105360.0,105350.0,0.51821233]
[1750220894549,0.03534,105360.0,105350.0,0.51821233]
[1750220895183,0.0448309,105360.0,105350.0,0.51821233]
[1750220895395,0.25363851,105360.0,105350.0,0.32588513]
[1750220895607,0.30894788,105360.0,105350.0,0.49934882]
[1750220896048,0.29945707,105360.0,105350.0,0.499349]
[1750220896261,0.29945707,105360.0,105350.0,0.5088408]
[1750220896888,0.29945707,105360.0,105350.0,0.51833251]
[1750220898878,0.29945707,105360.0,105350.0,0.5088408]
[1750220899096,0.28996617,105360.0,105350.0,0.40310733]
[1750220899331,0.62047518,105360.0,105350.0,0.39357544]
[1750220899539,0.64324906,105360.0,105350.0,0.39357544]
[1750220900179,0.67177806,105360.0,105350.0,0.39357544]
[1750220901235,0.6622868,105360.0,105350.0,0.39349553]
[1750220901482,0.6622868,105360.0,105350.0,0.19416]
[1750220902346,0.6622868,105360.0,105350.0,0.19168]
[1750220904291,0.19933553,105350.0,105340.0,0.21833987]
[1750220904517,0.61102742,105350.0,105340.0,0.03976]
[1750220904737,0.53935447,105340.0,105320.0,0.26253323]
[1750220904964,0.62492835,105340.0,105330.0,0.19412]
[1750220905401,0.62492835,105340.0,105320.0,0.3682695]
[1750220905402,0.00949361,105330.0,105320.0,0.3682695]
[1750220905621,0.01898695,105330.0,105320.0,0.5623895]
[1750220906493,0.00949334,105330.0,105320.0,0.5623895]
[1750220906699,0.01898686,105330.0,105320.0,0.5643895]
[1750220906921,0.02848047,105330.0,105320.0,0.5643895]
[1750220907337,0.01898686,105330.0,105320.0,0.5643895]
[1750220908232,0.01898686,105330.0,105320.0,0.5653895]
[1750220912038,0.00949334,105330.0,105320.0,0.5653895]
[1750220912611,0.01898686,105330.0,105320.0,0.5653895]
[1750220913565,0.00949334,105330.0,105320.0,0.5653895]
[1750220914414,0.01898686,105330.0,105320.0,0.5653895]
[1750220914596,0.02848038,105330.0,105320.0,0.5653895]
[1750220914827,0.01898677,105330.0,105320.0,0.5653895]
[1750220915952,0.03797417,105330.0,105320.0,0.5653895]
[1750220916163,0.03797417,105330.0,105320.0,0.5023895]
[1750220916599,0.03797417,105330.0,105320.0,0.50239004]
[1750220916826,0.03797417,105330.0,105320.0,0.51188428]
[1750220917254,0.02848038,105330.0,105320.0,0.51188428]
[1750220917867,0.03797417,105330.0,105320.0,0.51188428]
[1750220918078,0.02848038,105330.0,105320.0,0.51188428]
[1750220918268,0.03797417,105330.0,105320.0,0.51188428]
[1750220919025,0.58094726,105340.0,105330.0,0.20886673]
[1750220919228,0.56783275,105340.0,105330.0,0.21836016]
[1750220919931,0.55834023,105340.0,105330.0,0.19937321]
[1750220920113,0.55834023,105340.0,105330.0,0.20886682]
[1750220920457,0.55834023,105340.0,105330.0,0.21836034]
[1750220920861,0.55834023,105340.0,105330.0,0.20886682]
[1750220921261,0.54884744,105340.0,105330.0,0.20886682]
[1750220924200,0.54884744,105340.0,105330.0,0.21836034]
[1750220924420,0.54884744,105340.0,105330.0,0.20886682]
[1750220924638,0.58144744,105340.0,105330.0,0.20886682]
[1750220924855,0.58144744,105340.0,105330.0,0.18987942]
[1750220925052,0.59474567,105340.0,105330.0,0.20886709]
[1750220925260,0.59474567,105340.0,105330.0,0.2278544]
[1750220927155,0.56214567,105340.0,105330.0,0.23734792]
[1750220927575,0.38177687,105340.0,105330.0,0.23734738]
[1750220927825,0.39126939,105340.0,105330.0,0.23734738]
[1750220928020,0.40076236,105340.0,105330.0,0.23734738]
[1750220929609,0.59062431,105340.0,105330.0,0.22785404]
[1750220930242,0.57163864,105340.0,105330.0,0.21836052]
[1750220934956,0.57163864,105340.0,105330.0,0.22785404]
[1750220938677,0.57163864,105340.0,105330.0,0.26761404]
[1750220940316,0.57163665,105340.0,105330.0,0.26761404]
[1750220941556,0.57163665,105340.0,105330.0,0.25812052]
[1750220941758,0.57163665,105340.0,105330.0,0.27710747]
[1750220943844,0.38177525,105340.0,105330.0,0.27710747]
[1750220944057,0.38177479,105340.0,105330.0,0.27710702]
[1750220944986,0.39126722,105340.0,105330.0,0.34100702]
[1750220945445,0.39126713,105340.0,105330.0,0.34100702]
[1750220945675,0.40076001,105340.0,105330.0,0.30800702]
[1750220946662,0.40076001,105340.0,105330.0,0.33840702]
[1750220950971,0.40076001,105340.0,105330.0,0.30800702]
[1750220955120,0.41025298,105340.0,105330.0,0.27710702]
[1750220958154,0.38177416,105340.0,105330.0,0.34200702]
[1750220958356,0.36278921,105340.0,105330.0,0.34200702]
[1750220959223,0.34,105340.0,105330.0,0.43824878]
[1750220960643,0.34949225,105340.0,105330.0,0.43824878]
[1750220960846,0.35898468,105340.0,105330.0,0.43824878]
[1750220961269,0.36847729,105340.0,105330.0,0.43824878]
[1750220961983,0.35898468,105340.0,105330.0,0.43824878]
[1750220962129,0.34949225,105340.0,105330.0,0.43824878]
[1750220962334,0.35898468,105340.0,105330.0,0.43824878]
[1750220965762,0.36847729,105340.0,105330.0,0.43824878]
[1750220966183,0.37797017,105340.0,105330.0,0.59256878]
[1750220966396,0.37797017,105340.0,105330.0,0.43824878]
[1750220966620,0.37797017,105340.0,105330.0,0.59256878]
[1750220968527,0.36847729,105340.0,105330.0,0.59256878]
[1750220968744,0.37797008,105340.0,105330.0,0.59256878]
[1750220968960,0.38746296,105340.0,105330.0,0.59256878]
[1750220969371,0.38746296,105340.0,105330.0,0.59008878]
[1750220969576,0.38746296,105340.0,105330.0,0.55708878]
[1750220970979,0.38746296,105340.0,105330.0,0.52518878]
[1750220971869,0.37797008,105340.0,105330.0,0.52518878]
[1750220972094,0.36847729,105340.0,105330.0,0.58808878]
[1750220972746,0.35898468,105340.0,105330.0,0.58808878]
[1750220972982,0.36847729,105340.0,105330.0,0.58808878]
[1750220974387,0.37796999,105340.0,105330.0,0.58808878]
[1750220974597,0.36847729,105340.0,105330.0,0.58808878]
[1750220974845,0.37797008,105340.0,105330.0,0.58808878]
[1750220975262,0.36847729,105340.0,105330.0,0.58808878]
[1750220978725,0.3684772,105340.0,105330.0,0.58808878]
[1750220979813,0.37796981,105340.0,105330.0,0.58808878]
[1750220980875,0.38746251,105340.0,105330.0,0.58808878]
[1750220981292,0.38746314,105340.0,105330.0,0.58808878]
[1750220982376,0.38746368,105340.0,105330.0,0.52518878]
[1750220982579,0.38746423,105340.0,105330.0,0.50620201]
[1750220982782,0.38746423,105340.0,105330.0,0.51569544]
[1750220983068,0.38746423,105340.0,105330.0,0.36137544]
[1750220983257,0.57732563,105340.0,105330.0,0.51569544]
[1750220984976,0.56783302,105340.0,105330.0,0.40046673]
[1750220985422,0.59062199,105340.0,105330.0,0.40046673]
[1750220985648,0.37797162,105340.0,105330.0,0.40996007]
[1750220985895,0.37797162,105340.0,105330.0,0.40996025]
[1750220986314,0.40076033,105340.0,105330.0,0.40996025]
[1750220986589,0.40076033,105340.0,105330.0,0.41945368]
[1750220987723,0.38177384,105340.0,105330.0,0.42894702]
[1750220987915,0.37797062,105340.0,105330.0,0.46174702]
[1750220988126,0.39126921,105340.0,105330.0,0.46174702]
[1750220988333,0.36847774,105340.0,105330.0,0.46174702]
[1750220988741,0.38177757,105340.0,105330.0,0.46174702]
[1750220988948,0.36847765,105340.0,105330.0,0.46174702]
[1750220989598,0.37797053,105340.0,105330.0,0.46174702]
[1750220989811,0.3874636,105340.0,105330.0,0.46174702]
[1750220990908,0.37797053,105340.0,105330.0,0.46174702]
[1750220991326,0.3874635,105340.0,105330.0,0.46174702]
[1750220992781,0.38746414,105340.0,105330.0,0.46174702]
[1750220993291,0.57732554,105340.0,105330.0,0.41945368]
[1750220995911,0.3684781,105340.0,105330.0,0.59018878]
[1750220996124,0.35898522,105340.0,105330.0,0.59018878]
[1750220996649,0.34,105340.0,105330.0,0.59018878]
[1750220996864,0.34949225,105340.0,105330.0,0.59018878]
[1750220997481,0.34,105340.0,105330.0,0.59018878]
[1750220999426,0.34949225,105340.0,105330.0,0.59018878]
[1750221000374,0.36847477,105350.0,105340.0,0.2489395]
[1750221000610,0.37796639,105350.0,105340.0,0.37648126]
[1750221001119,0.36847459,105350.0,105340.0,0.37648126]
[1750221001421,0.3779663,105350.0,105340.0,0.37648126]
[1750221001832,0.3799663,105350.0,105340.0,0.37648126]
[1750221002038,0.3894581,105350.0,105340.0,0.37648126]
[1750221002397,0.03996666,105350.0,105340.0,0.37648126]
[1750221003052,0.0419663,105350.0,105340.0,0.37648126]
[1750221003464,0.05145819,105350.0,105340.0,0.37648126]
[1750221003952,0.0419663,105350.0,105340.0,0.37648126]
[1750221004391,0.3819663,105350.0,105340.0,0.37648126]
[1750221006485,0.39145819,105350.0,105340.0,0.37648126]
[1750221007391,0.3819663,105350.0,105340.0,0.37648126]
[1750221007538,0.39145828,105350.0,105340.0,0.34518126]
[1750221007732,0.3819663,105350.0,105340.0,0.34518126]
[1750221007961,0.37247459,105350.0,105340.0,0.37778126]
[1750221008587,0.3819663,105350.0,105340.0,0.37778126]
[1750221008746,0.37247459,105350.0,105340.0,0.37778126]
[1750221009164,0.38196639,105350.0,105340.0,0.37778126]
[1750221010008,0.37247459,105350.0,105340.0,0.37778126]
[1750221010437,0.35349144,105350.0,105340.0,0.37778126]
[1750221010649,0.36298306,105350.0,105340.0,0.37778126]
[1750221011051,0.35349144,105350.0,105340.0,0.37778126]
[1750221011255,0.36298306,105350.0,105340.0,0.37778126]
[1750221012308,0.35349144,105350.0,105340.0,0.41750126]
[1750221012517,0.36298306,105350.0,105340.0,0.41750126]
[1750221012933,0.35349144,105350.0,105340.0,0.41750126]
[1750221013593,0.004,105350.0,105340.0,0.41750126]
[1750221014682,0.002,105350.0,105340.0,0.41750126]
[1750221015348,0.002,105350.0,105340.0,0.43204211]
[1750221015842,0.02847207,105360.0,105350.0,0.21831877]
[1750221016063,0.03796315,105360.0,105350.0,0.31456062]
[1750221016280,0.11165432,105360.0,105350.0,0.50852053]
[1750221016488,0.09267207,105360.0,105350.0,0.50852053]
[1750221016704,0.00949054,105360.0,105350.0,0.50852053]
[1750221016927,0.66625775,105370.0,105360.0,0.21829833]
[1750221017142,0.46695942,105370.0,105360.0,0.22778896]
[1750221017352,0.47644969,105370.0,105360.0,0.22778896]
[1750221017567,0.48594005,105370.0,105360.0,0.22778896]
[1750221017786,0.40415933,105370.0,105360.0,0.32403072]
[1750221017999,0.3947589,105370.0,105360.0,0.32403072]
[1750221018418,0.40424908,105370.0,105360.0,0.32403072]
[1750221018627,0.40624908,105370.0,105360.0,0.32403072]
[1750221018842,0.3967589,105370.0,105360.0,0.32403072]
[1750221019060,0.00208966,105370.0,105360.0,0.38563072]
[1750221019271,0.00408966,105370.0,105360.0,0.38563072]
[1750221020577,8.966e-05,105370.0,105360.0,0.38563072]
[1750221020792,0.00957921,105370.0,105360.0,0.38563072]
[1750221021052,0.02855903,105370.0,105360.0,0.32403072]
[1750221021294,0.01906903,105370.0,105360.0,0.32403072]
[1750221022129,0.02855894,105370.0,105360.0,0.32403072]
[1750221023189,0.01906903,105370.0,105360.0,0.32403072]
[1750221028843,0.01906903,105370.0,105360.0,0.35583072]
[1750221029468,0.02855894,105370.0,105360.0,0.32403072]
[1750221029889,0.01906903,105370.0,105360.0,0.32403072]
[1750221032740,0.02855912,105370.0,105360.0,0.32403072]
[1750221033294,0.02855903,105370.0,105360.0,0.32403072]
[1750221033493,0.01906903,105370.0,105360.0,0.32403072]
[1750221033799,0.02855903,105370.0,105360.0,0.32403072]
[1750221034661,0.01906903,105370.0,105360.0,0.32403072]
[1750221035105,0.02855912,105370.0,105360.0,0.31454009]
[1750221035320,0.10364948,105370.0,105360.0,0.3231909]
[1750221035527,0.10364948,105370.0,105360.0,0.33268153]
[1750221035528,0.1036493,105370.0,105360.0,0.33268153]
[1750221035968,0.11313957,105370.0,105360.0,0.33268153]
[1750221036181,0.11314038,105370.0,105360.0,0.33268153]
[1750221036453,0.10365002,105370.0,105360.0,0.33268153]
[1750221036682,0.02847243,105360.0,105350.0,0.4999267]
[1750221036897,0.10196369,105360.0,105350.0,0.79954071]
[1750221037117,0.29178905,105360.0,105350.0,0.80903233]
[1750221037562,0.28229851,105360.0,105350.0,0.79004909]
[1750221037801,0.6128077,105360.0,105350.0,0.53011544]
[1750221038019,0.6128077,105360.0,105350.0,0.69480742]
[1750221038231,0.6128077,105360.0,105350.0,0.48598]
[1750221038232,0.60331662,105360.0,105350.0,0.48598]
[1750221038449,0.62605861,105360.0,105350.0,0.33178]
[1750221038674,0.60331662,105360.0,105350.0,0.49547216]
[1750221039100,0.62605353,105360.0,105350.0,0.49547216]
[1750221039319,0.60331662,105360.0,105350.0,0.49747216]
[1750221039543,0.60331662,105360.0,105350.0,0.48798]
[1750221040494,0.62605364,105360.0,105350.0,0.48798]
[1750221040924,0.60331662,105360.0,105350.0,0.33378]
[1750221041152,0.62605365,105360.0,105350.0,0.48798]
[1750221041371,0.62605365,105360.0,105350.0,0.003]
[1750221041813,0.62605365,105360.0,105350.0,0.19688]
[1750221042244,0.62605365,105360.0,105350.0,0.19388]
[1750221047236,0.65458365,105360.0,105350.0,0.19388]
[1750221048721,0.00949325,105330.0,105320.0,0.33784856]
[1750221048932,0.35898531,105340.0,105330.0,0.20886673]
[1750221049138,0.36847828,105340.0,105330.0,0.21836016]
[1750221049975,0.35903251,105340.0,105330.0,0.2278535]
[1750221050183,0.35903251,105340.0,105330.0,0.2318535]
[1750221050805,0.36852539,105340.0,105330.0,0.2318535]
[1750221051842,0.35903251,105340.0,105330.0,0.2318535]
[1750221052272,0.35903251,105340.0,105330.0,0.2338535]
[1750221053418,0.18774745,105340.0,105330.0,0.2338535]
[1750221053558,0.00953972,105340.0,105330.0,0.2338535]
[1750221054183,0.02852558,105340.0,105330.0,0.2338535]
[1750221054590,0.02852558,105340.0,105330.0,0.22436016]
[1750221055817,0.36852558,105340.0,105330.0,0.22436016]
[1750221057940,0.02852558,105340.0,105330.0,0.2338535]
[1750221058164,0.02852539,105340.0,105330.0,0.2638535]
[1750221058379,0.01903251,105340.0,105330.0,0.2948535]
[1750221058828,0.02852539,105340.0,105330.0,0.2948535]
[1750221063338,0.03801836,105340.0,105330.0,0.2948535]
[1750221063800,0.04751143,105340.0,105330.0,0.2948535]
[1750221064255,0.03801836,105340.0,105330.0,0.2948535]
[1750221067151,0.03801836,105340.0,105330.0,0.39906673]
[1750221067152,0.22787976,105340.0,105330.0,0.39906673]
[1750221067379,0.21838724,105340.0,105330.0,0.36906691]
[1750221067603,0.21838724,105340.0,105330.0,0.37856052]
[1750221067810,0.21838724,105340.0,105330.0,0.38805404]
[1750221070252,0.20889445,105340.0,105330.0,0.20537339]
[1750221070487,0.20889445,105340.0,105330.0,0.36906727]
[1750221070699,0.20889445,105340.0,105330.0,0.37856106]
[1750221070925,0.24029445,105340.0,105330.0,0.37856106]
[1750221071144,0.24029445,105340.0,105330.0,0.42773476]
[1750221072708,0.2536086,105340.0,105330.0,0.006]
[1750221072924,0.2536086,105340.0,105330.0,0.19988]
[1750221073144,0.2536086,105340.0,105330.0,0.20937397]
[1750221074228,0.1899086,105340.0,105330.0,0.41824088]
[1750221074706,0.19940148,105340.0,105330.0,0.4277344]
[1750221074917,0.21838716,105340.0,105330.0,0.4277344]
[1750221075779,0.20889455,105340.0,105330.0,0.40874727]
[1750221076002,0.19940167,105340.0,105330.0,0.39925339]
[1750221076242,0.1899086,105340.0,105330.0,0.39925339]
[1750221076710,0.1899086,105340.0,105330.0,0.40874727]
[1750221076937,0.1899086,105340.0,105330.0,0.41824106]